fUSD/lending_fUSD_20250208
["ID","MTS","AMOUNT","RATE_DAILY","PERIOD"]
[352255247,1739019057947,-1408.14,0.00010394,2]
[352255248,1739019057956,-500.0,0.00010394,2]
[352255249,1739019057965,-500.0,0.00010394,2]
[352255250,1739019057974,-504.33538854,0.00010394,2]
[352255251,1739019057984,-500.0,0.00010394,2]
[352255252,1739019057994,-641.09,0.00010394,2]
[352255253,1739019058003,-645.26,0.00010394,2]
[352255254,1739019058012,-500.0,0.00010394,2]
[352255255,1739019058021,-1518.89,0.00010394,2]
[352255256,1739019058031,-523.0,0.00010394,2]
[352255257,1739019058040,-601.38,0.00010394,2]
[352255258,1739019058050,-500.0,0.00010394,2]
[352255259,1739019058059,-1614.82,0.00010394,2]
[352255260,1739019058070,-500.0,0.00010394,2]
[352255261,1739019058085,-500.0,0.00010394,2]
[352255262,1739019058094,-500.0,0.00010394,2]
[352255263,1739019058104,-500.0,0.00010394,2]
[352255264,1739019058113,-501.56381152,0.00010394,2]
[352255265,1739019058122,-500.0,0.00010394,2]
[352255266,1739019058132,-924.8,0.00010394,2]
[352255267,1739019058141,-500.0,0.00010394,2]
[352255268,1739019058150,-584.46,0.00010394,2]
[352255269,1739019058159,-566.77,0.00010394,2]
[352255270,1739019058169,-500.0,0.00010394,2]
[352255271,1739019058178,-711.62,0.00010394,2]
[352255272,1739019058187,-534.43,0.00010394,2]
[352255273,1739019058196,-500.0,0.00010394,2]
[352255274,1739019058205,-500.0,0.00010394,2]
[352255275,1739019058214,-1238.8,0.00010394,2]
[352255276,1739019058223,-500.0,0.00010394,2]
[352255277,1739019058233,-621.2,0.00010394,2]
[352255278,1739019058242,-503.27163911,0.00010394,2]
[352255279,1739019058251,-500.0,0.00010394,2]
[352255280,1739019058261,-500.0,0.00010394,2]
[352255281,1739019058270,-1258.69,0.00010394,2]
[352255282,1739019058279,-843.8,0.00010394,2]
[352255283,1739019058289,-500.0,0.00010394,2]
[352255284,1739019058298,-500.0,0.00010394,2]
[352255285,1739019058308,-500.0,0.00010394,2]
[352255286,1739019058318,-381.44556606,0.00010394,2]
[352255287,1739019058327,-505.57559906,0.00010394,2]
[352255288,1739019058336,-500.0,0.00010394,2]
[352255289,1739019058346,-500.0,0.00010394,2]
[352255290,1739019058412,-500.0,0.00010394,2]
[352255291,1739019058423,-1577.24,0.00010394,2]
[352255292,1739019058433,-558.66,0.00010394,2]
[352255293,1739019058443,-500.0,0.00010394,2]
[352255294,1739019058453,-732.41,0.00010394,2]
[352255295,1739019058462,-500.0,0.00010394,2]
[352255296,1739019058473,-500.0,0.00010394,2]
[352255297,1739019058484,-500.0,0.00010394,2]
[352255298,1739019058494,-668.02,0.00010394,2]
[352255299,1739019058504,-500.0,0.00010394,2]
[352255300,1739019058512,-500.0,0.00010394,2]
[352255301,1739019058523,-500.0,0.00010394,2]
[352255302,1739019058535,-1376.68,0.00010394,2]
[352255303,1739019058544,-500.0,0.00010394,2]
[352255304,1739019058554,-500.0,0.00010394,2]
[352255305,1739019058563,-578.18,0.00010394,2]
[352255306,1739019058573,-1234.59,0.00010394,2]
[352255307,1739019058584,-500.0,0.00010394,2]
[352255308,1739019058597,-545.13,0.00010394,2]
[352255309,1739019058606,-500.0,0.00010394,2]
[352255310,1739019058615,-500.0,0.00010394,2]
[352255311,1739019058624,-702.19,0.00010394,2]
[352255312,1739019058634,-500.0,0.00010394,2]
[352255313,1739019058644,-500.0,0.00010394,2]
[352255314,1739019058655,-664.46,0.00010394,2]
[352255315,1739019058666,-1351.05,0.00010394,2]
[352255316,1739019058676,-672.31,0.00010394,2]
[352255317,1739019058685,-848.69,0.00010394,2]
[352255318,1739019058695,-500.0,0.00010394,2]
[352255319,1739019058704,-500.0,0.00010394,2]
[352255320,1739019058716,-698.15,0.00010394,2]
[352255321,1739019058726,-961.88,0.00010394,2]
[352255322,1739019058735,-1098.18,0.00010394,2]
[352255323,1739019058746,-500.0,0.00010394,2]
[352255324,1739019058755,-1230.69,0.00010394,2]
[352255325,1739019058765,-500.0,0.00010394,2]
[352255326,1739019058774,-500.0,0.00010394,2]
[352255327,1739019058784,-500.0,0.00010394,2]
[352255328,1739019058793,-500.0,0.00010394,2]
[352255329,1739019058803,-282.39193747,0.00010394,2]
[352255330,1739019058813,-500.0,0.00010394,2]
[352255331,1739019058823,-502.37,0.00010394,2]
[352255332,1739019058834,-500.0,0.00010394,2]
[352255333,1739019058843,-500.0,0.00010394,2]
[352255334,1739019058852,-547.92,0.00010394,2]
[352255335,1739019058861,-500.0,0.00010394,2]
[352255336,1739019058870,-589.64,0.00010394,2]
[352255337,1739019058880,-736.0,0.00010394,2]
[352255338,1739019058889,-500.0,0.00010394,2]
[352255339,1739019058898,-500.0,0.00010394,2]
[352255340,1739019058908,-500.0,0.00010394,2]
[352255341,1739019058917,-500.0,0.00010394,2]
[352255342,1739019058927,-500.0,0.00010394,2]
[352255343,1739019058938,-785.96,0.00010394,2]
[352255344,1739019058948,-500.0,0.00010394,2]
[352255345,1739019058959,-664.98,0.00010394,2]
[352255346,1739019058968,-500.0,0.00010394,2]
[352255347,1739019058979,-500.0,0.00010394,2]
[352255348,1739019058989,-504.79,0.00010394,2]
[352255349,1739019058998,-500.0,0.00010394,2]
[352255350,1739019059007,-500.0,0.00010394,2]
[352255351,1739019059017,-500.0,0.00010394,2]
[352255352,1739019059027,-739.53,0.00010394,2]
[352255353,1739019059036,-500.0,0.00010394,2]
[352255354,1739019059047,-1829.05,0.00010394,2]
[352255355,1739019059055,-500.0,0.00010394,2]
[352255356,1739019059065,-500.0,0.00010394,2]
[352255357,1739019059074,-500.0,0.00010394,2]
[352255358,1739019059084,-500.0,0.00010394,2]
[352255359,1739019059094,-500.0,0.00010394,2]
[352255360,1739019059103,-625.61,0.00010394,2]
[352255361,1739019059114,-749.8,0.00010394,2]
[352255362,1739019059126,-500.0,0.00010394,2]
[352255363,1739019059145,-1500.55,0.00010394,2]
[352255364,1739019059158,-550.9,0.00010394,2]
[352255365,1739019059169,-500.0,0.00010394,2]
[352255366,1739019059178,-762.56,0.00010394,2]
[352255367,1739019059188,-651.58,0.00010394,2]
[352255368,1739019059198,-688.8,0.00010394,2]
[352255369,1739019059209,-500.0,0.00010394,2]
[352255370,1739019059218,-500.0,0.00010394,2]
[352255371,1739019059227,-503.93,0.00010394,2]
[352255372,1739019059236,-503.41889032,0.00010394,2]
[352255373,1739019059247,-500.0,0.00010394,2]
[352255374,1739019059256,-500.0,0.00010394,2]
[352255375,1739019059266,-500.0,0.00010394,2]
[352255376,1739019059277,-824.16,0.00010394,2]
[352255377,1739019059287,-500.0,0.00010394,2]
[352255378,1739019059297,-500.0,0.00010394,2]
[352255379,1739019059306,-500.0,0.00010394,2]
[352255380,1739019059315,-597.19,0.00010394,2]
[352255381,1739019059325,-759.56,0.00010394,2]
[352255382,1739019059334,-692.04,0.00010394,2]
[352255383,1739019059343,-1415.76,0.00010394,2]
[352255384,1739019059352,-500.0,0.00010394,2]
[352255385,1739019059362,-500.0,0.00010394,2]
[352255386,1739019059371,-610.47,0.00010394,2]
[352255387,1739019059380,-500.0,0.00010394,2]
[352255388,1739019059390,-500.0,0.00010394,2]
[352255389,1739019059403,-1795.35,0.00010394,2]
[352255390,1739019059412,-500.0,0.00010394,2]
[352255391,1739019059422,-500.0,0.00010394,2]
[352255392,1739019059431,-500.0,0.00010394,2]
[352255393,1739019059442,-500.0,0.00010394,2]
[352255394,1739019059452,-500.0,0.00010394,2]
[352255395,1739019059462,-500.0,0.00010394,2]
[352255396,1739019059471,-500.0,0.00010394,2]
[352255397,1739019059483,-722.92,0.00010394,2]
[352255398,1739019059492,-500.0,0.00010394,2]
[352255399,1739019059501,-500.0,0.00010394,2]
[352255400,1739019059512,-500.0,0.00010394,2]
[352255401,1739019059521,-696.7,0.00010394,2]
[352255402,1739019059530,-1014.75,0.00010394,2]
[352255403,1739019059539,-500.0,0.00010394,2]
[352255404,1739019059550,-1491.65,0.00010394,2]
[352255405,1739019059559,-500.0,0.00010394,2]
[352255406,1739019059568,-506.62018164,0.00010394,2]
[352255407,1739019059577,-506.94756317,0.00010394,2]
[352255408,1739019059586,-659.72,0.00010394,2]
[352255409,1739019059595,-500.0,0.00010394,2]
[352255410,1739019059603,-635.45,0.00010394,2]
[352255411,1739019059612,-1440.95,0.00010394,2]
[352255412,1739019059621,-500.0,0.00010394,2]
[352255413,1739019059630,-570.01,0.00010394,2]
[352255414,1739019059639,-561.8,0.00010394,2]
[352255415,1739019059649,-500.0,0.00010394,2]
[352255416,1739019059658,-10803.61,0.00010394,2]
[352255417,1739019059667,-1177.71,0.00010394,2]
[352255418,1739019059676,-1665.48,0.00010394,2]
[352255419,1739019059685,-500.0,0.00010394,2]
[352255420,1739019059696,-500.0,0.00010394,2]
[352255421,1739019059706,-1542.87,0.00010394,2]
[352255422,1739019059715,-500.0,0.00010394,2]
[352255423,1739019059724,-500.0,0.00010394,2]
[352255424,1739019059734,-500.0,0.00010394,2]
[352255425,1739019059743,-500.0,0.00010394,2]
[352255426,1739019059752,-500.0,0.00010394,2]
[352255427,1739019059761,-500.0,0.00010394,2]
[352255428,1739019059771,-500.0,0.00010394,2]
[352255429,1739019059780,-2013.31,0.00010394,2]
[352255430,1739019059789,-1526.43,0.00010394,2]
[352255431,1739019059799,-500.0,0.00010394,2]
[352255432,1739019059809,-1414.63,0.00010394,2]
[352255433,1739019059818,-500.0,0.00010394,2]
[352255434,1739019059828,-500.0,0.00010394,2]
[352255435,1739019059837,-500.0,0.00010394,2]
[352255436,1739019059847,-506.75,0.00010394,2]
[352255437,1739019059856,-500.0,0.00010394,2]
[352255438,1739019059866,-500.0,0.00010394,2]
[352255439,1739019059875,-500.0,0.00010394,2]
[352255440,1739019059885,-500.0,0.00010394,2]
[352255441,1739019059894,-2271.3,0.00010394,2]
[352255442,1739019059903,-1267.0,0.00010394,2]
[352255443,1739019059913,-1254.27,0.00010394,2]
[352255444,1739019059922,-500.0,0.00010394,2]
[352255445,1739019059931,-764.29,0.00010394,2]
[352255446,1739019059940,-632.62,0.00010394,2]
[352255447,1739019059950,-1910.15,0.00010394,2]
[352255448,1739019059959,-500.0,0.00010394,2]
[352255449,1739019059968,-1006.72,0.00010394,2]
[352255450,1739019059977,-2639.64,0.00010394,2]
[352255451,1739019059988,-500.0,0.00010394,2]
[352255452,1739019059998,-500.0,0.00010394,2]
[352255453,1739019060007,-556.57,0.00010394,2]
[352255454,1739019060016,-2409.54,0.00010394,2]
[352255455,1739019060025,-500.0,0.00010394,2]
[352255456,1739019060035,-521.61,0.00010394,2]
[352255457,1739019060044,-1454.28,0.00010394,2]
[352255458,1739019060055,-500.0,0.00010394,2]
[352255459,1739019060064,-500.0,0.00010394,2]
[352255460,1739019060074,-1765.01,0.00010394,2]
[352255461,1739019060083,-1985.75,0.00010394,2]
[352255462,1739019060093,-500.0,0.00010394,2]
[352255463,1739019060102,-1199.55,0.00010394,2]
[352255464,1739019060111,-871.18,0.00010394,2]
[352255465,1739019060121,-647.57815439,0.00010394,2]
[352255466,1739019060130,-2599.62,0.00010394,2]
[352255467,1739019060139,-373.32975441,0.00010394,2]
[352255468,1739019060149,-1854.84,0.00010394,2]
[352255469,1739019060158,-500.0,0.00010394,2]
[352255470,1739019060167,-893.79,0.00010394,2]
[352255471,1739019060176,-500.0,0.00010394,2]
[352255472,1739019060186,-500.0,0.00010394,2]
[352255473,1739019060195,-1978.01,0.00010394,2]
[352255474,1739019060205,-500.0,0.00010394,2]
[352255475,1739019060214,-4080.58,0.00010394,2]
[352255476,1739019060224,-1719.91,0.00010394,2]
[352255477,1739019060233,-4167.24,0.00010394,2]
[352255478,1739019060243,-500.0,0.00010394,2]
[352255479,1739019060252,-12253.86,0.00010394,2]
[352255480,1739019060261,-1340.27,0.00010394,2]
[352255481,1739019060271,-1039.39,0.00010394,2]
[352255482,1739019060280,-498.21529629,0.00010394,2]
[352255483,1739019060289,-500.0,0.00010394,2]
[352255484,1739019060299,-502.8739787,0.00010394,2]
[352255485,1739019060309,-500.0,0.00010394,2]
[352255486,1739019060318,-1640.04,0.00010394,2]
[352255487,1739019060327,-500.0,0.00010394,2]
[352255488,1739019060337,-1083.05,0.00010394,2]
[352255489,1739019060347,-500.0,0.00010394,2]
[352255490,1739019060356,-1904.32,0.00010394,2]
[352255491,1739019060365,-802.41,0.00010394,2]
[352255492,1739019060374,-500.0,0.00010394,2]
[352255493,1739019060383,-500.0,0.00010394,2]
[352255494,1739019060397,-500.0,0.00010394,2]
[352255495,1739019060406,-151.79094384,0.00010394,2]
[352255496,1739019060417,-4946.08,0.00010394,2]
[352255497,1739019060426,-1721.15,0.00010394,2]
[352255498,1739019060437,-1252.24,0.00010394,2]
[352255499,1739019060446,-500.0,0.00010394,2]
[352255500,1739019060455,-1389.14,0.00010394,2]
[352255501,1739019060464,-1691.94,0.00010394,2]
[352255502,1739019060473,-1132.83,0.00010394,2]
[352255503,1739019060483,-1046.15,0.00010394,2]
[352255504,1739019060493,-2627.54,0.00010394,2]
[352255505,1739019060504,-519.94,0.00010394,2]
[352255506,1739019060515,-500.0,0.00010394,2]
[352255507,1739019060524,-500.0,0.00010394,2]
[352255508,1739019060535,-512.52,0.00010394,2]
[352255509,1739019060546,-500.0,0.00010394,2]
[352255510,1739019060557,-183.21041715,0.00010394,2]
[352255511,1739019060566,-500.0,0.00010394,2]
[352255512,1739019060575,-3945.23,0.00010394,2]
[352255513,1739019060585,-500.0,0.00010394,2]
[352255514,1739019060594,-1727.91,0.00010394,2]
[352255515,1739019060608,-500.0,0.00010394,2]
[352255516,1739019060617,-500.0,0.00010394,2]
[352255517,1739019060626,-500.0,0.00010394,2]
[352255518,1739019060636,-255.34822096,0.00010394,2]
[352255519,1739019060645,-3984.19,0.00010394,2]
[352255520,1739019060654,-949.44,0.00010394,2]
[352255521,1739019060663,-500.0,0.00010394,2]
[352255522,1739019060672,-500.0,0.00010394,2]
[352255523,1739019060683,-328.52220604,0.00010394,2]
[352255524,1739019060692,-3057.43,0.00010394,2]
[352255525,1739019060701,-714.81,0.00010394,2]
[352255526,1739019060710,-1900.09,0.00010394,2]
[352255527,1739019060719,-4918.46,0.00010394,2]
[352255528,1739019060729,-618.76,0.00010394,2]
[352255529,1739019060739,-500.0,0.00010394,2]
[352255530,1739019060749,-2718.67,0.00010394,2]
[352255531,1739019060758,-1307.78,0.00010394,2]
[352255532,1739019060767,-500.0,0.00010394,2]
[352255533,1739019060778,-500.0,0.00010394,2]
[352255534,1739019060788,-721.31,0.00010394,2]
[352255535,1739019060797,-502.93862647,0.00010394,2]
[352255536,1739019060806,-500.0,0.00010394,2]
[352255537,1739019060815,-500.0,0.00010394,2]
[352255538,1739019060826,-500.0,0.00010394,2]
[352255539,1739019060836,-500.0,0.00010394,2]
[352255540,1739019060845,-500.0,0.00010394,2]
[352255541,1739019060856,-570.33,0.00010394,2]
[352255542,1739019060865,-2870.05,0.00010394,2]
[352255543,1739019060874,-860.75,0.00010394,2]
[352255544,1739019060883,-503.3989549,0.00010394,2]
[352255545,1739019060892,-500.0,0.00010394,2]
[352255546,1739019060902,-500.0,0.00010394,2]
[352255547,1739019060912,-3205.41,0.00010394,2]
[352255548,1739019060922,-500.0,0.00010394,2]
[352255549,1739019060931,-3098.11,0.00010394,2]
[352255550,1739019060940,-500.0,0.00010394,2]
[352255551,1739019060950,-500.0,0.00010394,2]
[352255552,1739019060959,-1823.36,0.00010394,2]
[352255553,1739019060969,-600.49,0.00010394,2]
[352255554,1739019060979,-1639.56,0.00010394,2]
[352255555,1739019060988,-500.0,0.00010394,2]
[352255556,1739019060998,-2230.91,0.00010394,2]
[352255557,1739019061007,-5256.2,0.00010394,2]
[352255558,1739019061016,-500.0,0.00010394,2]
[352255559,1739019061025,-755.89,0.00010394,2]
[352255560,1739019061034,-1950.99,0.00010394,2]
[352255561,1739019061045,-1465.86,0.00010394,2]
[352255562,1739019061054,-730.02,0.00010394,2]
[352255563,1739019061063,-500.0,0.00010394,2]
[352255564,1739019061074,-500.0,0.00010394,2]
[352255565,1739019061084,-3908.9,0.00010394,2]
[352255566,1739019061094,-597.26,0.00010394,2]
[352255567,1739019061103,-500.0,0.00010394,2]
[352255568,1739019061113,-1496.15,0.00010394,2]
[352255569,1739019061122,-500.0,0.00010394,2]
[352255570,1739019061131,-3150.83,0.00010394,2]
[352255571,1739019061140,-500.0,0.00010394,2]
[352255572,1739019061149,-500.0,0.00010394,2]
[352255573,1739019061158,-3721.01,0.00010394,2]
[352255574,1739019061167,-1347.86,0.00010394,2]
[352255575,1739019061176,-500.0,0.00010394,2]
[352255576,1739019061185,-2167.97,0.00010394,2]
[352255577,1739019061194,-1543.2,0.00010394,2]
[352255578,1739019061203,-500.0,0.00010394,2]
[352255579,1739019061212,-3577.47,0.00010394,2]
[352255580,1739019061221,-549.39,0.00010395,2]
[352255581,1739019061230,-500.0,0.00010395,2]
[352255582,1739019061239,-500.0,0.00010395,2]
[352255583,1739019061249,-500.0,0.00010395,2]
[352255584,1739019061258,-500.0,0.00010395,2]
[352255585,1739019061267,-500.0,0.00010395,2]
[352255586,1739019061277,-500.0,0.00010395,2]
[352255587,1739019061286,-602.87,0.00010395,2]
[352255588,1739019061296,-1367.43,0.00010395,2]
[352255589,1739019061307,-567.33,0.00010395,2]
[352255590,1739019061316,-742.72,0.00010395,2]
[352255591,1739019061326,-1443.9,0.00010395,2]
[352255592,1739019061336,-500.0,0.00010395,2]
[352255593,1739019061345,-500.0,0.00010395,2]
[352255594,1739019061355,-1546.44,0.00010395,2]
[352255595,1739019061364,-151.0,0.00010395,2]
[352255596,1739019061374,-2113.11,0.00010395,2]
[352255597,1739019061384,-1746.31,0.00010395,2]
[352255598,1739019061394,-825.67,0.00010395,2]
[352255599,1739019061407,-706.55,0.00010395,2]
[352255600,1739019061417,-754.09,0.00010395,2]
[352255601,1739019061426,-500.0,0.00010395,2]
[352255602,1739019061436,-1816.29,0.00010395,2]
[352255603,1739019061447,-792.06,0.00010395,2]
[352255604,1739019061456,-1800.25,0.00010395,2]
[352255605,1739019061466,-500.0,0.00010395,2]
[352255606,1739019061476,-1741.18,0.00010395,2]
[352255607,1739019061486,-708.43,0.00010395,2]
[352255608,1739019061495,-820.36,0.00010395,2]
[352255609,1739019061504,-500.0,0.00010395,2]
[352255610,1739019061514,-879.9,0.00010395,2]
[352255611,1739019061524,-151.0,0.00010395,2]
[352255612,1739019061533,-566.23,0.00010395,2]
[352255613,1739019061543,-500.0,0.00010395,2]
[352255614,1739019061555,-668.43,0.00010395,2]
[352255615,1739019061565,-697.71,0.00010395,2]
[352255616,1739019061574,-500.0,0.00010395,2]
[352255617,1739019061583,-922.83,0.00010395,2]
[352255618,1739019061593,-500.0,0.00010395,2]
[352255619,1739019061602,-1031.15,0.00010395,2]
[352255620,1739019061612,-500.0,0.00010395,2]
[352255621,1739019061623,-414.86324248,0.00010415,2]
[352255622,1739019061633,-926.19,0.00010439,2]
[352255623,1739019061643,-9715.7,0.00010475,2]
[352255624,1739019061652,-9999.99,0.00010475,2]
[352255625,1739019061661,-174.22140754,0.00010529,2]
[352255626,1739019061671,-500.0,0.00010529,2]
[352255627,1739019061680,-500.0,0.00010529,2]
[352255628,1739019061690,-500.0,0.00010529,2]
[352255629,1739019061699,-816.95,0.00010529,2]
[352255630,1739019061708,-599.04,0.00010529,2]
[352255631,1739019061718,-500.0,0.0001053,2]
[352255632,1739019061728,-500.0,0.0001053,2]
[352255633,1739019061738,-500.0,0.0001053,2]
[352255634,1739019061747,-500.0,0.0001053,2]
[352255635,1739019061756,-500.0,0.0001053,2]
[352255636,1739019061766,-500.0,0.0001053,2]
[352255637,1739019061775,-500.0,0.0001053,2]
[352255638,1739019061785,-500.0,0.0001053,2]
[352255639,1739019061794,-500.0,0.0001053,2]
[352255640,1739019061805,-500.0,0.0001053,2]
[352255641,1739019061815,-500.0,0.0001053,2]
[352255642,1739019061825,-500.0,0.0001053,2]
[352255643,1739019061834,-500.0,0.0001053,2]
[352255644,1739019061844,-500.0,0.0001053,2]
[352255645,1739019061854,-500.0,0.0001053,2]
[352255646,1739019061864,-515.97,0.0001053,2]
[352255647,1739019061875,-500.0,0.0001053,2]
[352255648,1739019061884,-500.0,0.0001053,2]
[352255649,1739019061894,-648.2,0.0001053,2]
[352255650,1739019061904,-500.0,0.0001053,2]
[352255651,1739019061913,-500.0,0.0001053,2]
[352255652,1739019061923,-3008.63252,0.0001053,2]
[352255653,1739019061934,-500.0,0.0001053,2]
[352255654,1739019061943,-500.0,0.0001053,2]
[352255655,1739019061953,-2728.309725,0.0001053,2]
[352255656,1739019061962,-3964.16,0.0001053,2]
[352255657,1739019061972,-500.0,0.0001053,2]
[352255658,1739019061982,-500.0,0.0001053,2]
[352255659,1739019061991,-500.0,0.0001053,2]
[352255660,1739019062000,-500.0,0.0001053,2]
[352255661,1739019062011,-1789.1,0.0001053,2]
[352255662,1739019062020,-500.0,0.0001053,2]
[352255663,1739019062030,-500.0,0.0001053,2]
[352255664,1739019062040,-500.0,0.0001053,2]
[352255665,1739019062052,-500.0,0.0001053,2]
[352255666,1739019062062,-2632.84,0.0001053,2]
[352255667,1739019062072,-500.0,0.0001053,2]
[352255668,1739019062082,-500.0,0.0001053,2]
[352255669,1739019062091,-1472.27,0.0001053,2]
[352255670,1739019062101,-500.0,0.0001053,2]
[352255671,1739019062111,-500.0,0.0001053,2]
[352255672,1739019062120,-500.0,0.0001053,2]
[352255673,1739019062130,-500.0,0.0001053,2]
[352255674,1739019062140,-1246.73,0.0001053,2]
[352255675,1739019062149,-500.0,0.0001053,2]
[352255676,1739019062159,-732.86,0.0001053,2]
[352255677,1739019062169,-1635.35,0.0001053,2]
[352255678,1739019062179,-502.37307964,0.0001053,2]
[352255679,1739019062190,-957.45,0.0001053,2]
[352255680,1739019062200,-154.500294,0.0001053,2]
[352255681,1739019062210,-447.9292568,0.0001053,2]
[352255682,1739019062221,-500.0,0.0001053,2]
[352255683,1739019062231,-284.802933,0.0001053,2]
[352255684,1739019062240,-2129.11,0.0001053,2]
[352255685,1739019062250,-500.0,0.0001053,2]
[352255686,1739019062259,-500.0,0.0001053,2]
[352255687,1739019062269,-1486.98,0.0001053,2]
[352255688,1739019062278,-500.0,0.0001053,2]
[352255689,1739019062288,-500.0,0.0001053,2]
[352255690,1739019062298,-500.0,0.0001053,2]
[352255691,1739019062307,-719.04,0.0001053,2]
[352255692,1739019062317,-500.0,0.0001053,2]
[352255693,1739019062328,-2812.8,0.0001053,2]
[352255694,1739019062338,-500.0,0.0001053,2]
[352255695,1739019062349,-595.75487393,0.0001053,2]
[352255696,1739019062361,-500.0,0.0001053,2]
[352255697,1739019062373,-500.0,0.0001053,2]
[352255698,1739019062383,-500.0,0.0001053,2]
[352255699,1739019062394,-500.0,0.0001053,2]
[352255700,1739019062407,-480.61112866,0.0001053,2]
[352255701,1739019062417,-500.0,0.0001053,2]
[352255702,1739019062428,-500.0,0.0001053,2]
[352255703,1739019062439,-1251.32,0.0001053,2]
[352255704,1739019062450,-500.0,0.0001053,2]
[352255705,1739019062459,-500.0,0.0001053,2]
[352255706,1739019062472,-2408.46,0.0001053,2]
[352255707,1739019062482,-576.34,0.0001053,2]
[352255708,1739019062492,-2049.94,0.0001053,2]
[352255709,1739019062502,-500.0,0.0001053,2]
[352255710,1739019062511,-2596.03,0.0001053,2]
[352255711,1739019062521,-9020.31,0.0001053,2]
[352255712,1739019062532,-500.0,0.0001053,2]
[352255713,1739019062544,-1786.43,0.0001053,2]
[352255714,1739019062554,-694.65,0.0001053,2]
[352255715,1739019062564,-206.35029817,0.0001053,2]
[352255716,1739019062573,-1924.37,0.0001053,2]
[352255717,1739019062583,-3419.0,0.0001053,2]
[352255718,1739019062594,-1572.95,0.0001053,2]
[352255719,1739019062603,-503.21632026,0.0001053,2]
[352255720,1739019062614,-500.0,0.0001053,2]
[352255721,1739019062624,-1504.29,0.0001053,2]
[352255722,1739019062634,-500.0,0.0001053,2]
[352255723,1739019062643,-2063.74,0.0001053,2]
[352255724,1739019062654,-2135.24,0.0001053,2]
[352255725,1739019062664,-500.0,0.0001053,2]
[352255726,1739019062673,-2347.77,0.0001053,2]
[352255727,1739019062683,-3498.02,0.0001053,2]
[352255728,1739019062696,-500.0,0.0001053,2]
[352255729,1739019062707,-500.0,0.0001053,2]
[352255730,1739019062717,-500.0,0.0001053,2]
[352255731,1739019062727,-500.0,0.0001053,2]
[352255732,1739019062737,-2405.82,0.0001053,2]
[352255733,1739019062746,-500.0,0.0001053,2]
[352255734,1739019062758,-500.0,0.0001053,2]
[352255735,1739019062767,-2856.96,0.0001053,2]
[352255736,1739019062778,-500.0,0.0001053,2]
[352255737,1739019062789,-1222.26,0.0001053,2]
[352255738,1739019062798,-500.0,0.0001053,2]
[352255739,1739019062808,-500.0,0.0001053,2]
[352255740,1739019062819,-2445.85,0.0001053,2]
[352255741,1739019062828,-500.0,0.0001053,2]
[352255742,1739019062838,-1846.25,0.0001053,2]
[352255743,1739019062848,-500.0,0.0001053,2]
[352255744,1739019062858,-500.0,0.0001053,2]
[352255745,1739019062868,-3417.47,0.0001053,2]
[352255746,1739019062877,-500.0,0.0001053,2]